Cogmind - Beta 9 @@@ ROGUE MODE // 2019.10.28 @ 07:34:01 Player: MrPainting Result: Self-destructed Performance ------------- Evolutions (1) 500 Regions Visited (6) 1200 Robots Destroyed (48) 240 Value Destroyed (869) 869 Prototype IDs (0) 0 Alien Tech Used (0) 0 Bonus (0) 0 TOTAL SCORE: 2809 Bonus ------- None Cogmind --------- Core Integrity 206/400 Matter 290/300 Energy 170/170 System Corruption 0% Temperature Cool (0) Location -8/Mines Parts ------- Power (1) Makeshift Power Source Propulsion (4) Light Treads Aluminum Leg Carbon-fiber Leg Carbon-fiber Leg Utility (2) High-capacity Storage Unit Improved Sensor Array Weapon (2) Gauss Rifle Gauss Cannon Inventory (12) Improved Heat Sink Improved Cooling System High-capacity Storage Unit Large Matter Pod (60) High-capacity Matter Pod (200) Structural Scanner Light Armor Plating Improved Medium Armor Plating Hacking Suite Mini Grenade Launcher Mini Grenade Launcher Remote Datajack Peak State ------------ Power Makeshift Power Source Propulsion Light Treads Light Treads Carbon-fiber Leg Carbon-fiber Leg Utility High-capacity Storage Unit Improved Sensor Array Weapon Gauss Rifle Gauss Cannon Inventory Improved Heat Sink Improved Cooling System High-capacity Storage Unit High-capacity Matter Pod Structural Scanner Light Armor Plating Improved Medium Armor Plating Hacking Suite Plasma Cannon Mini Grenade Launcher Mini Grenade Launcher Remote Datajack [Rating: 26] Favorites ----------- Power Light Nuclear Core Engine Light Ion Engine Power Core Light Nuclear Core Propulsion Light Treads Treads Light Treads Leg Aluminum Leg Utility High-capacity Storage Unit Device Improved Sensor Array Storage High-capacity Storage Unit Weapon Small Laser Energy Gun Small Laser Energy Cannon Improved EM Pulse Cannon Ballistic Gun Light Assault Rifle Ballistic Cannon Gauss Cannon Launcher Mini Grenade Launcher Build | -11 -10 -10 -9 -9 -9 -8 ------- Run | Scr Mat Min Mat Min Exi Min Slots Evolved 2 | . . . 2 . . . Power . | . . . . . . . Propulsion 2 | . . . 2 . . . Utility . | . . . . . . . Weapon . | . . . . . . . Parts Attached 50 | 6 5 7 11 12 9 . Power 6 | 1 . 1 . 2 2 . Engine 5 | 1 . . . 2 2 . Core 1 | . . 1 . . . . Reactor . | . . . . . . . Propulsion 13 | 2 . 2 4 2 3 . Treads 5 | . . . 3 2 . . Leg 8 | 2 . 2 1 . 3 . Wheel . | . . . . . . . Hover . | . . . . . . . Flight . | . . . . . . . Utility 7 | 1 2 2 1 1 . . Device 4 | . 1 2 . 1 . . Storage 3 | 1 1 . 1 . . . Processor . | . . . . . . . Hackware . | . . . . . . . Protection . | . . . . . . . Artifact . | . . . . . . . Weapon 24 | 2 3 2 6 7 4 . Energy Gun 7 | 2 3 . 2 . . . Energy Cannon 4 | . . . . 4 . . Ballistic Gun 4 | . . 2 1 . 1 . Ballistic Cannon 2 | . . . . 1 1 . Launcher 7 | . . . 3 2 2 . Special Weapon . | . . . . . . . Impact Weapon . | . . . . . . . Slashing Weapon . | . . . . . . . Piercing Weapon . | . . . . . . . Special Melee Weapon . | . . . . . . . Unidentified Prototypes . | . . . . . . . Parts Lost 8 | . 1 . 7 . . . Power 1 | . . . 1 . . . Propulsion 2 | . . . 2 . . . Utility . | . . . . . . . Weapon 5 | . 1 . 4 . . . Highest Loss Streak 3 | . 1 . 3 . . . Average Slot Usage (%) 94 | . 88 100 72 95 100 100 Engine 6 | . 14 1 . 7 11 11 Core 4 | . . 12 4 . . . Treads 16 | . . . 12 44 23 11 Leg 19 | . 28 28 12 . 20 33 Device 11 | . 2 14 11 11 11 11 Storage 12 | . 14 14 11 11 11 11 Energy Gun 7 | . 28 17 1 . . . Energy Cannon 2 | . . . . 6 3 . Ballistic Gun 6 | . . 10 11 . 4 11 Ballistic Cannon 4 | . . . . 6 9 11 Launcher 3 | . . . 7 8 4 . Naked Turns . | . . . . . . . Heaviest Build 57 | 12 25 24 39 57 50 48 Greatest Support 80 | 20 20 20 60 80 80 40 Greatest Overweight (x) 3 | . 1 1 2 . 3 1 Average Overweight (x) . | . . 1 . . . 1 Largest Inventory Capacity 12 | 6 12 10 12 12 12 12 Average Capacity 10 | 5 7 10 10 12 12 12 Most Carried 12 | 4 5 9 12 12 12 12 Average Carried 9 | 2 3 7 6 11 11 12 Final Capacity 12 | . . . . . . 12 Final Carried 12 | . . . . . . 12 Class Distribution -------------------- 79% | Scavenger-Mutant 20% | Mutant Dominant Class ---------------- Mutant | -10/Materials Scavenger-Mutant | -10/Mines Mutant | -9/Materials Scavenger-Mutant | -9/Mines Scavenger-Mutant | -9/Exiles Scavenger-Mutant | -8/Mines Resources | -11 -10 -10 -9 -9 -9 -8 ----------- Run | Scr Mat Min Mat Min Exi Min Matter Collected 1457 | 185 107 301 303 233 328 . Remotely . | . . . . . . . Salvage Created 1606 | . 107 316 770 135 278 . Parts 97 | . 4 25 55 6 7 . Haulers Intercepted 2 | . . . 2 . . . Recyclers Shooed 4 | . 2 . 2 . . . Parts Field Recycled . | . . . . . . . Retrieved Matter . | . . . . . . . Parts Self-Destructed . | . . . . . . . Prevented . | . . . . . . . Kills | -11 -10 -10 -9 -9 -9 -8 ------- Run | Scr Mat Min Mat Min Exi Min Combat Hostiles Destroyed 29 | . 3 11 10 4 1 . Guns 20 | . 3 11 6 . . . Cannons 5 | . . . . 4 1 . AOE 4 | . . . 4 . . . Classes Destroyed 10 | . 1 3 6 . . . Worker 2 | . . 1 1 . . . Builder 3 | . . . 3 . . . Tunneler 2 | . . . 1 1 . . Hauler 2 | . . . 2 . . . Recycler 5 | . . 1 3 1 . . Operator 1 | . . . 1 . . . Watcher 4 | . . . 4 . . . Swarmer 15 | . . 9 3 3 . . Grunt 12 | . 3 2 5 1 1 . Sentry 2 | . . . 2 . . . Best Kill Streak 13 | . 3 3 13 3 1 . Combat Bots Only 3 | . 3 3 3 3 1 . Max Kills in Single Turn 4 | . 1 1 4 1 1 . Gunslinging . | . . . . . . . Exploded 2 | . . . 2 . . . Melee . | . . . . . . . Uniques/NPCs Destroyed . | . . . . . . . Combat | -11 -10 -10 -9 -9 -9 -8 -------- Run | Scr Mat Min Mat Min Exi Min Damage Taken 1425 | . 198 213 741 273 . . Core 253 | . 33 26 175 19 . . Absorbed by Shields . | . . . . . . . Core Remaining (%) 88 | 100 . 76 . . . . Volleys Fired 147 | . 12 30 59 15 31 . Largest 2 | . 2 2 2 2 2 . Hottest 128 | . 100 80 60 128 117 . Shots Fired 265 | . 23 60 105 30 47 . Gun 178 | . 23 60 90 . 5 . Cannon 66 | . . . . 30 36 . Launcher 21 | . . . 15 . 6 . Special . | . . . . . . . Kinetic 145 | . . 18 79 15 33 . Thermal 75 | . 23 42 . 10 . . Explosive 21 | . . . 15 . 6 . Electromagnetic 24 | . . . 11 5 8 . Robot Hit Streak 17 | . 8 9 17 5 6 . Robot Miss Streak 4 | . 4 2 3 2 2 . Penetration Max . | . . . . . . . Secondary Targets 7 | . 1 3 3 . . . Max Gunslinging Chain 1 | . 1 1 1 . . . Shots Hit Robots 163 | . 16 36 69 18 24 . Core Hits 91 | . 8 18 49 5 11 . Critical Hits 1 | . . . . . 1 . Critical Kills 1 | . . . . . 1 . Critical Parts Destroyed . | . . . . . . . Melee Attacks . | . . . . . . . Impact . | . . . . . . . Slashing . | . . . . . . . Piercing . | . . . . . . . Sneak Attacks . | . . . . . . . Combat Hostiles . | . . . . . . . Follow-up Attacks . | . . . . . . . Damage Inflicted 3045 | . 216 323 1356 440 710 . Guns 1135 | . 216 323 553 . 43 . Cannons 1107 | . . . . 440 667 . Explosions 798 | . . . 798 . . . Melee . | . . . . . . . Ramming 5 | . . . 5 . . . Kinetic 1254 | . . 83 470 180 521 . Thermal 672 | . 216 240 67 149 . . Explosive 720 | . . . 720 . . . Electromagnetic 394 | . . . 94 111 189 . Impact . | . . . . . . . Slashing . | . . . . . . . Piercing . | . . . . . . . Highest Corruption . | . . . . . . . Average Corruption . | . . . . . . . Corruption Purged . | . . . . . . . Overload Shots . | . . . . . . . Overflow Damage 100 | . . . 52 3 45 . Projectiles 48 | . . . . 3 45 . Explosions 52 | . . . 52 . . . Melee . | . . . . . . . Knockbacks 8 | . . . . 2 6 . Impact . | . . . . . . . Kinetic 8 | . . . . 2 6 . Secondary . | . . . . . . . Self-Inflicted Damage 73 | . . . 73 . . . Shots 4 | . . . 4 . . . Rammed . | . . . . . . . Targets Rammed 1 | . . . 1 . . . Kicked 1 | . . . 1 . . . Crushed . | . . . . . . . Highest Temperature 433 | . 290 8 26 433 112 . Average Temperature 78 | . 133 4 9 141 44 . Received Heat Transfer 432 | . 108 33 279 12 . . Effects 3 | . 2 . . 1 . . Energy Bleed 1 | . 1 . . . . . Interference 1 | . 1 . . . . . Short Circuit 1 | . . . . 1 . . Siege Activations . | . . . . . . . Robots Corrupted 1 | . . . . 1 . . Combat Hostiles . | . . . . . . . Parts Fried 1 | . . . . 1 . . Impact Corruptions . | . . . . . . . Robots Melted . | . . . . . . . Combat Hostiles . | . . . . . . . Parts Melted 2 | . 1 1 . . . . Heat Transferred 1482 | . 582 550 50 300 . . Parts Sabotaged . | . . . . . . . Parts Stolen . | . . . . . . . Parts Stripped . | . . . . . . . Power Chain Reactions . | . . . . . . . Missiles Intercepted . | . . . . . . . Alert | -11 -10 -10 -9 -9 -9 -8 ------- Run | Scr Mat Min Mat Min Exi Min Peak Influence 303 | . 85 228 303 190 . . Average Influence 91 | . 17 83 159 94 . . Maximum Alert Level 1 | . . 1 1 . . . Low Security (%) 88 | . . . . . . . Level 1 11 | . . . . . . . Level 2 . | . . . . . . . Level 3 . | . . . . . . . Level 4 . | . . . . . . . Level 5 . | . . . . . . . High Security . | . . . . . . . Max Security . | . . . . . . . Squads Dispatched 6 | . 1 . 4 1 . . Investigation 2 | . . . 1 1 . . Extermination . | . . . . . . . Reinforcement 4 | . 1 . 3 . . . Assault . | . . . . . . . Garrison . | . . . . . . . Intercept . | . . . . . . . Construction Impeded 1 | . . . 1 . . . Haulers Reinforced . | . . . . . . . Stealth | -11 -10 -10 -9 -9 -9 -8 --------- Run | Scr Mat Min Mat Min Exi Min Distress Signals 2 | . . . 2 . . . Communications Jammed . | . . . . . . . Distress Signals . | . . . . . . . Times Spotted 46 | . 6 12 22 6 . . Peak Tracking Total 5 | . 3 3 5 4 . . Tactical Retreats 2 | . . . 1 1 . . Traps | -11 -10 -10 -9 -9 -9 -8 ------- Run | Scr Mat Min Mat Min Exi Min Traps Triggered 1 | . . . 1 . . . Indirectly . | . . . . . . . Trap Hack Attempts . | . . . . . . . Triggered . | . . . . . . . Disarmed . | . . . . . . . Reprogrammed . | . . . . . . . Reused . | . . . . . . . Traps Extracted . | . . . . . . . Installed . | . . . . . . . Triggered . | . . . . . . . Machines | -11 -10 -10 -9 -9 -9 -8 ---------- Run | Scr Mat Min Mat Min Exi Min Machines Disabled 5 | . . . 4 1 . . Max in Single Turn 2 | . . . 2 1 . . Machines Sabotaged . | . . . . . . . Garrisons Compromised . | . . . . . . . Overloaded Fab Kills . | . . . . . . . Fab Network Shutdowns . | . . . . . . . Hacking | -11 -10 -10 -9 -9 -9 -8 --------- Run | Scr Mat Min Mat Min Exi Min Machines Accessed 5 | . . . 2 1 2 . Terminals 1 | . . . 1 . . . Fabricators . | . . . . . . . Repair Stations . | . . . . . . . Recycling Units 1 | . . . 1 . . . Scanalyzers . | . . . . . . . Garrison Access . | . . . . . . . Total Hacks 20 | . . . 7 1 12 . Successful 16 | . . . 3 1 12 . Failed 4 | . . . 4 . . . Catastrophic . | . . . . . . . Database Lockouts . | . . . . . . . Manual 4 | . . . 3 . 1 . Terminals 4 | . . . 4 . . . Fabricators . | . . . . . . . Repair Stations . | . . . . . . . Recycling Units 3 | . . . 3 . . . Scanalyzers . | . . . . . . . Garrison Access . | . . . . . . . Terminal Hacks 15 | . . . 2 1 12 . Record 12 | . . . . . 12 . Open Door 1 | . . . . 1 . . Alert Level 1 | . . . 1 . . . Recall Investigation 1 | . . . 1 . . . Fabricator Hacks . | . . . . . . . Repair Station Hacks . | . . . . . . . Recycling Unit Hacks 1 | . . . 1 . . . Retrieve Components 1 | . . . 1 . . . Scanalyzer . | . . . . . . . Garrison Access Hacks . | . . . . . . . Unauthorized Hacks . | . . . . . . . Terminals . | . . . . . . . Fabricators . | . . . . . . . Repair Stations . | . . . . . . . Recycling Units . | . . . . . . . Scanalyzers . | . . . . . . . Garrison Access . | . . . . . . . Data Cores Recovered . | . . . . . . . Used . | . . . . . . . Hacking Detections 2 | . . . 2 . . . Full Trace Events 1 | . . . 1 . . . Feedback Events . | . . . . . . . Feedback Blocked . | . . . . . . . Robot Schematics Acquired . | . . . . . . . Robots Built . | . . . . . . . Matter . | . . . . . . . Time . | . . . . . . . Total Robot Build Rating . | . . . . . . . Part Schematics Acquired . | . . . . . . . Parts Built . | . . . . . . . Matter . | . . . . . . . Time . | . . . . . . . Total Part Build Rating . | . . . . . . . Parts Repaired . | . . . . . . . Time . | . . . . . . . Parts Recycled . | . . . . . . . Recycled Matter . | . . . . . . . Retrieved Matter . | . . . . . . . Retrieved Components 8 | . . . 8 . . . Parts Scanalyzed . | . . . . . . . Part Schematics Acquired . | . . . . . . . Parts Damaged . | . . . . . . . Bothacking | -11 -10 -10 -9 -9 -9 -8 ------------ Run | Scr Mat Min Mat Min Exi Min Used RIF Installer . | . . . . . . . Robots Hacked . | . . . . . . . Non-combat . | . . . . . . . Combat . | . . . . . . . Robot Hacks Applied . | . . . . . . . Relay Couplers Released . | . . . . . . . Robots Rewired . | . . . . . . . Allies Hacked . | . . . . . . . Hacks Repelled . | . . . . . . . Allies | -11 -10 -10 -9 -9 -9 -8 -------- Run | Scr Mat Min Mat Min Exi Min Total Allies . | . . . . . . . Largest Group . | . . . . . . . Highest-Rated Group . | . . . . . . . Highest-Rated Ally . | . . . . . . . Total Orders . | . . . . . . . Ally Attacks . | . . . . . . . Total Damage . | . . . . . . . Kills . | . . . . . . . Allies Corrupted . | . . . . . . . Allies Melted . | . . . . . . . Intel | -11 -10 -10 -9 -9 -9 -8 ------- Run | Scr Mat Min Mat Min Exi Min Robot Analysis Total . | . . . . . . . Derelict Logs Recovered 2 | . . 1 . 1 . . Drone Launches . | . . . . . . . Drone Recoveries . | . . . . . . . Exploration | -11 -10 -10 -9 -9 -9 -8 ------------- Run | Scr Mat Min Mat Min Exi Min Turns Passed 3392 | 59 207 974 479 495 1119 59 Spaces Moved 1876 | 34 122 554 188 261 678 39 Core 6 | 6 . . . . . . Treads 418 | . . . 94 261 63 . Legs 1452 | 28 122 554 94 . 615 39 Wheels . | . . . . . . . Hover . | . . . . . . . Flight . | . . . . . . . Fastest Speed 50 | 50 120 150 120 160 150 150 Average Speed 150 | 107 129 150 155 160 151 150 Slowest Speed 210 | 120 150 150 180 160 210 150 Overloaded Moves . | . . . . . . . Propulsion Burnouts . | . . . . . . . Robots Hopped . | . . . . . . . Cave-ins Triggered . | . . . . . . . Exploration Rate (%) 46 | 3 28 99 20 67 90 18 Regions Visited 6 Branch Regions 4 Pre-discovered Areas 1 | . . 1 . . . . Known Exits Taken . | . . . . . . . Unknown Exits Taken 6 | 1 1 1 1 1 1 . Scrap Searched 2 | . . 1 . 1 . . Spaces Dug 15 | . . . . . 15 . Terrain Destroyed 82 | . . . 46 15 21 . Melee . | . . . . . . . Projectile 21 | . . . . 15 6 . AOE 61 | . . . 46 . 15 . Actions | -11 -10 -10 -9 -9 -9 -8 --------- Run | Scr Mat Min Mat Min Exi Min Total 2203 | 56 148 641 285 308 726 39 Wait 62 | 9 2 35 8 8 . . Move 1870 | 33 121 553 187 260 677 39 Hop . | . . . . . . . Pick Up 46 | 8 6 9 15 7 1 . Fast Attach 6 | . . . . 1 5 . Attach 21 | 6 4 . 8 3 . . Detach 2 | . 1 . . . 1 . Swap 23 | . 1 7 3 8 4 . Drop 25 | . 1 7 4 6 7 . Fire 147 | . 12 30 59 15 31 . Melee . | . . . . . . . Ram . | . . . . . . . Kick 1 | . . . 1 . . . Crush . | . . . . . . . Escape Stasis . | . . . . . . . Rewire . | . . . . . . . Trap . | . . . . . . . Miscellaneous . | . . . . . . . Route ------- -11/Scrapyard -10/Materials -10/Mines (discovered 2 exits: *Mat x2) -9/Materials (discovered 2 exits: *Min / Sto) -9/Mines (discovered 2 exits: [*Mat] / *Exi) -9/Exiles -8/Mines History --------- Turn | Location | Event 15 | -11/Scrapyard | Discovered new exit (range 15) 60 | -11/Scrapyard | Entered Materials 259 | -10/Materials | Discovered new exit (range 6) 267 | -10/Materials | Entered Mines 302 | -10/Mines | Build established: Mutant 371 | -10/Mines | Discovered new exit (range 11) 664 | -10/Mines | Learned location of Storage (-9) 681 | -10/Mines | Build established: Scavenger-Mutant 1031 | -10/Mines | Discovered new exit (range 5) 1039 | -10/Mines | Joined a pair of Derelicts in attacking an 0b10 outpost 1241 | -10/Mines | Entered Materials 1241 | -9/Materials | Evolved 2 slots: Propulsion x2 1242 | -9/Materials | Identified exit to Storage 1412 | -9/Materials | Lost 3 parts (1n2w) 1481 | -9/Materials | Discovered new exit (range 15) 1508 | -9/Materials | Lost 3 parts (1p2w) 1720 | -9/Materials | Entered Mines 1766 | -9/Mines | Learned Materials garrison access intel 1889 | -9/Mines | Met a Derelict shopkeep closing up shop 1960 | -9/Mines | Discovered new exit (range 8) 2206 | -9/Mines | Deemed a non-threat by the Exiles lab entrance 2207 | -9/Mines | Discovered new exit (range 5) 2215 | -9/Mines | Entered Exiles 2215 | -9/Exiles | Found Exiles lab destroyed 3012 | -9/Exiles | Discovered new exit (range 10) 3334 | -9/Exiles | Entered Mines 3393 | -8/Mines | Self-destructed Last Messages --------------- 03098_ Acquired 13 matter. 03113_ Acquired 17 matter. 03135_ Acquired 9 matter. 03177_ Slug penetrates Wall. 03183_ Slug penetrates A-02 Transporter. 03183_ A-02 Transporter destroyed. 03191_ Acquired 44 matter. 03192_ Slug penetrates A-02 Transporter. 03192_ A-02 Transporter destroyed. 03195_ Acquired 40 matter. 03215_ Extracted 90 matter. 03216_ Dropped Plasma Cannon. 03217_ Acquired Lrg. Matter Pod. 03258_ Dropped Lgt. Treads. 03259_ Acquired Aluminum Leg. LOCATION=UNKNOWN GOAL=ESCAPE 03335_ K-01 Serf collects debris. 03338_ K-01 Serf cleans the Laser Drill. 03359_ K-01 Serf collects debris. Map ----- +----------------------------------------------------+ | ?????????????????????????????????????????????????? | | ?????????????????????????????????????????????????? | | ?????????????????????????????????????????????????? | | ?????????????????????????????????????????????????? | | ?????????????????????????????????????????????????? | | ?????????????????????????????????????????????????? | | ?????????????????????????????????????????????????? | | ?????????????????????????????????????????????????? | | ?????????????????????????????????????????????????? | | ?????????????????????????????????????????????????? | | ?????????????????????????????????????????????????? | | ?????????????????????????????????????????????????? | | ?????????????????????????????????????????????????? | | ?????????????????????????????????????????????????? | | ?????????????????????????????????????????????????? | | ??????????????????????????????????????????????#### | | ??????????????????????????????????????????????# | | ?????????????????????????????????????#####????# | | ????????????????????????????????????## ##???# | | ???????????????????????????????????## #??## | | ?????????????????????????????????### #??#T | | ????????????????????????????????## #???## | | ??????????????????#?????????????# #?????### | | ????????????# #### ########???# #????????# | | ????????????# #???# ##???????# | | ???????????# @ #???# ###?????# | | ??????????h ### #??## #####?# | | ?????????? ## ??????# #### """" ### | | ?????????????????????????# """" ## | | ?????????????????????????# """" ## | | ?????????????????????????######## | | ????????????????????????????????### #### | | ??????????????????????????????????## ##??######## | | ???????????????????????????????????# ##??????????? | | ??????????????????????????????????# #???????????? | | ??????????????????????????????????# ???????????? | | ??????????????????????????????????#? ???????????? | | ???????????????????????????????????? ???????????? | | ???????????????????????????????????? ??????????? | | ????????????????????????????????????? ??????????? | | ????????????????????????????????????? #??????????? | | ?????????????????????????????????????#???????????? | | ?????????????????????????????????????????????????? | | ?????????????????????????????????????????????????? | | ?????????????????????????????????????????????????? | | ?????????????????????????????????????????????????? | | ?????????????????????????????????????????????????? | | ?????????????????????????????????????????????????? | | ?????????????????????????????????????????????????? | | ?????????????????????????????????????????????????? | +----------------------------------------------------+ Best States ------------- Heat Dissipation 39 Energy Generation 16 Energy Capacity 290 Matter Stores 300 Matter Capacity 300 Sight Range 16 Robot Scan Range 13 Terrain Scan Density 10 Evasion (%) 40 Recoil Reduction 4 Item Schematics ----------------- None Robot Schematics ------------------ None Fabricated ------------ Nothing Alien Tech Used ----------------- None Achievements -------------- None Challenges ------------ None Game ------ Seed NodeProtonExpander Manual? 0 Play Time 00:20:44 Cumulative 35.3 hours Start 2019.10.28 @ 07:13:28 End 2019.10.28 @ 07:34:01 Sessions 1 Manual Loads 0 Difficulty Rogue Special Mode None Game No. 57 Rogue 57 Adventurer 0 Explorer 0 Win Type - Total 0 Types 0/0/0/0/0/0/0 Lore% 26 Gallery% 31 Achievement% 24 Wizard Run 0 Options --------- ASCII 0 Keyboard 0 Movement Mouse Keybinds 0 Fullscreen 1 Font 18/SmallcapsGlow Map View 76x50 Tactical HUD 1 Map Filters NONE Filters NONE Steam 1 RUN: 23a55b5d-067d-4fbc-95b9-60bfee6565ba